[Event "*** Titled Tuesday Blitz"]
[Site "Chess.com"]
[Date "2021.03.16"]
[Round "3"]
[White "Olga_Zhuravleva"]
[Black "HackingKid98"]
[Result "0-1"]
[WhiteElo "2262"]
[BlackElo "2448"]
[TimeControl "180+1"]
[EndTime "10:27:38 PDT"]
[Termination "HackingKid98 won by resignation"]

1. e4 {[%clk 0:03:00.9]} 1... d5 {[%clk 0:02:59]} 2. exd5 {[%clk 0:02:58.4]}
2... c6 {[%clk 0:02:59.1]} 3. dxc6 {[%clk 0:02:47.5]} 3... Nxc6 {[%clk 0:03:00]}
4. Nf3 {[%clk 0:02:45.4]} 4... e5 {[%clk 0:02:59.8]} 5. Nc3 {[%clk 0:02:44.1]}
5... Bc5 {[%clk 0:02:59.1]} 6. d3 {[%clk 0:02:36.6]} 6... Nf6 {[%clk 0:02:59.1]}
7. Be3 {[%clk 0:02:36.4]} 7... Bxe3 {[%clk 0:02:49.7]} 8. fxe3 {[%clk
0:02:35.5]} 8... Qb6 {[%clk 0:02:49.8]} 9. Qd2 {[%clk 0:02:20.3]} 9... Qxb2
{[%clk 0:02:43.8]} 10. Rb1 {[%clk 0:02:18.9]} 10... Qa3 {[%clk 0:02:43.4]} 11.
Be2 {[%clk 0:02:09.6]} 11... O-O {[%clk 0:02:41]} 12. O-O {[%clk 0:02:09.1]}
12... e4 {[%clk 0:02:38.4]} 13. Ng5 {[%clk 0:01:58.6]} 13... exd3 {[%clk
0:02:35.1]} 14. cxd3 {[%clk 0:01:58.4]} 14... Qe7 {[%clk 0:02:33.9]} 15. Nge4
{[%clk 0:01:55.6]} 15... Nxe4 {[%clk 0:02:30.4]} 16. Nxe4 {[%clk 0:01:56.1]}
16... Be6 {[%clk 0:02:22.3]} 17. Bf3 {[%clk 0:01:46.8]} 17... Rac8 {[%clk
0:02:19.3]} 18. Rfc1 {[%clk 0:01:42.3]} 18... b6 {[%clk 0:02:15.6]} 19. Qf2
{[%clk 0:01:30.9]} 19... Ne5 {[%clk 0:02:14.1]} 20. Be2 {[%clk 0:01:25]} 20...
Bxa2 {[%clk 0:02:05.7]} 21. Ra1 {[%clk 0:01:21.2]} 21... Bd5 {[%clk 0:02:04.3]}
22. Nc3 {[%clk 0:01:16.6]} 22... Ba8 {[%clk 0:01:57.7]} 23. Nb5 {[%clk
0:01:11.4]} 23... a6 {[%clk 0:01:37.9]} 24. Nd4 {[%clk 0:01:03.6]} 24... Bb7
{[%clk 0:01:37]} 25. Qg3 {[%clk 0:00:47.4]} 25... g6 {[%clk 0:01:32.7]} 26. Nf5
{[%clk 0:00:25.1]} 26... Qe6 {[%clk 0:01:28.3]} 27. Nd4 {[%clk 0:00:24.4]} 27...
Qd5 {[%clk 0:01:06.4]} 28. Rf1 {[%clk 0:00:20.3]} 28... Kh8 {[%clk 0:00:59.7]}
29. h4 {[%clk 0:00:16.1]} 29... Nc6 {[%clk 0:00:54.4]} 30. Nf3 {[%clk
0:00:14.6]} 30... Rce8 {[%clk 0:00:46.8]} 31. Ng5 {[%clk 0:00:13.9]} 31... Qe5
{[%clk 0:00:42.9]} 32. Qh3 {[%clk 0:00:09.6]} 32... Qxe3+ {[%clk 0:00:41]} 33.
Qxe3 {[%clk 0:00:09.7]} 33... Rxe3 {[%clk 0:00:41.9]} 34. Nxf7+ {[%clk
0:00:08.6]} 34... Kg7 {[%clk 0:00:41.8]} 35. Nh6 {[%clk 0:00:08.8]} 35... Rxf1+
{[%clk 0:00:40.9]} 36. Bxf1 {[%clk 0:00:08.3]} 36... Kxh6 {[%clk 0:00:40.8]} 0-1

[Event "*** Titled Tuesday Blitz"]
[Site "Chess.com"]
[Date "2021.03.16"]
[Round "3"]
[White "Sanyura"]
[Black "DenLaz"]
[Result "0-1"]
[WhiteElo "2636"]
[BlackElo "2844"]
[TimeControl "180+1"]
[EndTime "10:27:40 PDT"]
[Termination "DenLaz won on time"]

1. e4 {[%clk 0:03:00.9]} 1... e5 {[%clk 0:02:59.2]} 2. Nf3 {[%clk 0:03:00.9]}
2... Nc6 {[%clk 0:02:59.4]} 3. Bb5 {[%clk 0:03:00.9]} 3... a6 {[%clk 0:02:59.1]}
4. Ba4 {[%clk 0:03:01.3]} 4... Nf6 {[%clk 0:02:59.5]} 5. O-O {[%clk 0:03:01.5]}
5... Be7 {[%clk 0:02:58.9]} 6. Re1 {[%clk 0:03:01.7]} 6... b5 {[%clk 0:02:59]}
7. Bb3 {[%clk 0:03:01.7]} 7... d6 {[%clk 0:02:56]} 8. c3 {[%clk 0:03:01.5]} 8...
O-O {[%clk 0:02:56.3]} 9. h3 {[%clk 0:03:01.1]} 9... Bb7 {[%clk 0:02:56.4]} 10.
d4 {[%clk 0:03:00.8]} 10... Re8 {[%clk 0:02:56.7]} 11. Nbd2 {[%clk 0:03:00.5]}
11... Bf8 {[%clk 0:02:56.5]} 12. a3 {[%clk 0:02:57.8]} 12... h6 {[%clk
0:02:46.7]} 13. Ba2 {[%clk 0:02:53.4]} 13... Nb8 {[%clk 0:02:43.4]} 14. b4
{[%clk 0:02:22.3]} 14... exd4 {[%clk 0:02:32.5]} 15. Qb3 {[%clk 0:02:03.6]}
15... Qd7 {[%clk 0:02:23.2]} 16. e5 {[%clk 0:01:58]} 16... Bd5 {[%clk
0:02:11.3]} 17. Qc2 {[%clk 0:01:48]} 17... dxe5 {[%clk 0:02:02.6]} 18. Nxe5
{[%clk 0:01:43.3]} 18... Qd6 {[%clk 0:01:34]} 19. cxd4 {[%clk 0:01:41.6]} 19...
Bxa2 {[%clk 0:01:32.3]} 20. Qxa2 {[%clk 0:01:42.5]} 20... Qd5 {[%clk 0:01:32.4]}
21. Ndf3 {[%clk 0:01:24.2]} 21... Qxa2 {[%clk 0:01:25.9]} 22. Rxa2 {[%clk
0:01:25.1]} 22... Nbd7 {[%clk 0:01:24.4]} 23. Rc2 {[%clk 0:01:20]} 23... Bd6
{[%clk 0:01:23]} 24. Bd2 {[%clk 0:01:04.9]} 24... Nb6 {[%clk 0:01:21.2]} 25.
Rec1 {[%clk 0:00:56.8]} 25... Nfd5 {[%clk 0:01:20.1]} 26. Rc6 {[%clk 0:00:53.8]}
26... f6 {[%clk 0:01:18.6]} 27. Nd3 {[%clk 0:00:22.6]} 27... Nc4 {[%clk
0:01:16.8]} 28. Nc5 {[%clk 0:00:22.9]} 28... Nxa3 {[%clk 0:00:58]} 29. Rxa6
{[%clk 0:00:19]} 29... Rxa6 {[%clk 0:00:55.4]} 30. Nxa6 {[%clk 0:00:19.9]} 30...
Nc4 {[%clk 0:00:55.7]} 31. Nc5 {[%clk 0:00:19.8]} 31... Nxd2 {[%clk 0:00:50.9]}
32. Nxd2 {[%clk 0:00:20.7]} 32... Nxb4 {[%clk 0:00:51.3]} 33. Rb1 {[%clk
0:00:16.5]} 33... Nc6 {[%clk 0:00:47.3]} 34. d5 {[%clk 0:00:03.1]} 34... Bxc5
{[%clk 0:00:43.6]} 35. dxc6 {[%clk 0:00:03.5]} 35... Re2 {[%clk 0:00:44.2]} 36.
Rxb5 {[%clk 0:00:03.4]} 36... Bxf2+ {[%clk 0:00:43.2]} 0-1

[Event "*** Titled Tuesday Blitz"]
[Site "Chess.com"]
[Date "2021.03.16"]
[Round "3"]
[White "Gahan-MG"]
[Black "ChelsieMonica"]
[Result "1-0"]
[WhiteElo "2663"]
[BlackElo "2338"]
[TimeControl "180+1"]
[EndTime "10:27:45 PDT"]
[Termination "Gahan-MG won by resignation"]

1. e4 {[%clk 0:03:00.9]} 1... e5 {[%clk 0:02:39.9]} 2. Nf3 {[%clk 0:03:00.7]}
2... Nc6 {[%clk 0:02:35.7]} 3. d4 {[%clk 0:03:00.8]} 3... exd4 {[%clk
0:02:34.6]} 4. Nxd4 {[%clk 0:03:01.7]} 4... Bc5 {[%clk 0:02:32.8]} 5. Nxc6
{[%clk 0:02:59.8]} 5... Qf6 {[%clk 0:02:32.4]} 6. Qd2 {[%clk 0:03:00.1]} 6...
dxc6 {[%clk 0:02:31.9]} 7. Nc3 {[%clk 0:03:00.4]} 7... Ne7 {[%clk 0:02:31.8]} 8.
Bd3 {[%clk 0:03:00.7]} 8... Qg6 {[%clk 0:02:31.2]} 9. O-O {[%clk 0:02:54.3]}
9... Bh3 {[%clk 0:02:26.9]} 10. Qg5 {[%clk 0:02:54]} 10... Qxg5 {[%clk
0:02:26.8]} 11. Bxg5 {[%clk 0:02:54.9]} 11... Bd7 {[%clk 0:02:26.4]} 12. Na4
{[%clk 0:02:52.6]} 12... Bb6 {[%clk 0:02:18.2]} 13. c4 {[%clk 0:02:50.9]} 13...
c5 {[%clk 0:02:16.7]} 14. Nxb6 {[%clk 0:02:48.9]} 14... axb6 {[%clk 0:02:16.4]}
15. a3 {[%clk 0:02:45.1]} 15... Nc6 {[%clk 0:02:14]} 16. Be3 {[%clk 0:02:43.5]}
16... Be6 {[%clk 0:02:13.2]} 17. f4 {[%clk 0:02:42.6]} 17... f6 {[%clk
0:02:10.4]} 18. b4 {[%clk 0:02:38.4]} 18... cxb4 {[%clk 0:01:59.2]} 19. axb4
{[%clk 0:02:39.3]} 19... Rd8 {[%clk 0:01:59.3]} 20. Be2 {[%clk 0:02:34.8]} 20...
Nxb4 {[%clk 0:01:58.2]} 21. Ra7 {[%clk 0:02:34.6]} 21... Bc8 {[%clk 0:01:56.5]}
22. c5 {[%clk 0:02:31.9]} 22... bxc5 {[%clk 0:01:40.9]} 23. Bxc5 {[%clk
0:02:32.8]} 23... Nd3 {[%clk 0:01:40.7]} 24. Be3 {[%clk 0:02:16.2]} 24... Nb4
{[%clk 0:01:34.9]} 25. Rc1 {[%clk 0:02:08]} 25... c6 {[%clk 0:01:22.6]} 26. Bb6
{[%clk 0:02:06.1]} 26... Rd2 {[%clk 0:01:18.2]} 27. Bc4 {[%clk 0:02:05.9]} 27...
Rc2 {[%clk 0:01:10.9]} 28. Rd1 {[%clk 0:01:56.8]} 28... Rxc4 {[%clk 0:00:53.8]}
29. Rd8+ {[%clk 0:01:56.4]} 29... Kf7 {[%clk 0:00:48.5]} 30. Rxh8 {[%clk
0:01:57.3]} 30... Nd3 {[%clk 0:00:48.7]} 31. Be3 {[%clk 0:01:55.1]} 31... Rb4
{[%clk 0:00:40.2]} 32. Kf1 {[%clk 0:01:48]} 32... Bg4 {[%clk 0:00:39.1]} 33. Ra1
{[%clk 0:01:42.5]} 33... Rb2 {[%clk 0:00:38.9]} 34. Rxh7 {[%clk 0:01:39.3]}
34... Rb4 {[%clk 0:00:33.9]} 35. h3 {[%clk 0:01:35.6]} 35... Be6 {[%clk
0:00:31.7]} 36. Ke2 {[%clk 0:01:33.7]} 36... Bc4 {[%clk 0:00:27.3]} 37. Kf3
{[%clk 0:01:31.6]} 37... Kg8 {[%clk 0:00:22.5]} 38. Rh5 {[%clk 0:01:30.1]} 38...
b5 {[%clk 0:00:19.8]} 39. Ra8+ {[%clk 0:01:26.9]} 39... Kf7 {[%clk 0:00:20.2]}
40. Ra7+ {[%clk 0:01:27.5]} 40... Kg6 {[%clk 0:00:19.2]} 41. Rh8 {[%clk
0:01:25.8]} 41... Ne1+ {[%clk 0:00:09.1]} 42. Kg3 {[%clk 0:01:24.8]} 42... f5
{[%clk 0:00:08.5]} 43. exf5+ {[%clk 0:01:18]} 43... Kxf5 {[%clk 0:00:09.4]} 44.
Rxg7 {[%clk 0:01:16.2]} 44... Rb3 {[%clk 0:00:08.9]} 45. Re8 {[%clk 0:01:11.9]}
45... Be6 {[%clk 0:00:08.2]} 46. Rg5+ {[%clk 0:01:11.6]} 46... Kf6 {[%clk
0:00:08.6]} 47. Re5 {[%clk 0:01:11]} 47... Nd3 {[%clk 0:00:08.5]} 48. R8xe6+
{[%clk 0:01:10.4]} 1-0

[Event "*** Titled Tuesday Blitz"]
[Site "Chess.com"]
[Date "2021.03.16"]
[Round "3"]
[White "blitzking1729"]
[Black "Smile2005"]
[Result "0-1"]
[WhiteElo "2623"]
[BlackElo "2437"]
[TimeControl "180+1"]
[EndTime "10:27:49 PDT"]
[Termination "Smile2005 won by checkmate"]

1. e4 {[%clk 0:03:00.9]} 1... d5 {[%clk 0:02:59.5]} 2. exd5 {[%clk 0:03:00]}
2... Nf6 {[%clk 0:02:59.8]} 3. d4 {[%clk 0:02:56.4]} 3... Nxd5 {[%clk
0:02:59.8]} 4. c4 {[%clk 0:02:55.8]} 4... Nb6 {[%clk 0:02:59.8]} 5. Nc3 {[%clk
0:02:55.3]} 5... e5 {[%clk 0:02:59.9]} 6. d5 {[%clk 0:02:54]} 6... Bc5 {[%clk
0:02:57.6]} 7. Ne4 {[%clk 0:02:46]} 7... Bd4 {[%clk 0:02:56.5]} 8. Nf3 {[%clk
0:02:44.2]} 8... Bg4 {[%clk 0:02:56.5]} 9. Be2 {[%clk 0:02:41]} 9... Bxf3 {[%clk
0:02:56.2]} 10. gxf3 {[%clk 0:02:41.2]} 10... O-O {[%clk 0:02:57.1]} 11. Bg5
{[%clk 0:02:33.2]} 11... f6 {[%clk 0:02:55.7]} 12. Be3 {[%clk 0:02:31.9]} 12...
Bxe3 {[%clk 0:02:55]} 13. fxe3 {[%clk 0:02:32.2]} 13... f5 {[%clk 0:02:55.2]}
14. Nf2 {[%clk 0:02:16.6]} 14... Qh4 {[%clk 0:02:45.7]} 15. Qb3 {[%clk
0:02:10.4]} 15... Na6 {[%clk 0:02:45.4]} 16. Qc3 {[%clk 0:02:06]} 16... e4
{[%clk 0:02:31.5]} 17. f4 {[%clk 0:02:03.4]} 17... c6 {[%clk 0:02:19.7]} 18. d6
{[%clk 0:01:56.2]} 18... Rf6 {[%clk 0:02:03.9]} 19. a3 {[%clk 0:01:43.8]} 19...
Rxd6 {[%clk 0:01:58.9]} 20. c5 {[%clk 0:01:40.8]} 20... Nd5 {[%clk 0:01:58.4]}
21. Bc4 {[%clk 0:01:37.9]} 21... Kh8 {[%clk 0:01:21.1]} 22. Qe5 {[%clk
0:01:18.7]} 22... Rg6 {[%clk 0:00:58.3]} 23. Bxd5 {[%clk 0:01:16.7]} 23... Rg2
{[%clk 0:00:55.5]} 24. Rf1 {[%clk 0:01:11.1]} 24... cxd5 {[%clk 0:00:44.8]} 25.
Qxd5 {[%clk 0:01:08.8]} 25... Rd8 {[%clk 0:00:37]} 26. Qxf5 {[%clk 0:00:57.8]}
26... b6 {[%clk 0:00:15.3]} 27. Qxe4 {[%clk 0:00:53.6]} 27... Rxh2 {[%clk
0:00:14.9]} 28. c6 {[%clk 0:00:45.3]} 28... Nc5 {[%clk 0:00:14.3]} 29. Qf3
{[%clk 0:00:24.5]} 29... Nd3+ {[%clk 0:00:14.3]} 30. Ke2 {[%clk 0:00:23.9]}
30... Nxf2 {[%clk 0:00:14.5]} 31. c7 {[%clk 0:00:23]} 31... Ne4+ {[%clk
0:00:12.3]} 32. Rf2 {[%clk 0:00:21.1]} 32... Rxf2+ {[%clk 0:00:12]} 33. Qxf2
{[%clk 0:00:21]} 33... Qxf2# {[%clk 0:00:12]} 0-1

[Event "*** Titled Tuesday Blitz"]
[Site "Chess.com"]
[Date "2021.03.16"]
[Round "3"]
[White "ChessQueen"]
[Black "Jospem"]
[Result "0-1"]
[WhiteElo "2719"]
[BlackElo "2925"]
[TimeControl "180+1"]
[EndTime "10:27:50 PDT"]
[Termination "Jospem won by resignation"]

1. e4 {[%clk 0:03:00.9]} 1... e5 {[%clk 0:02:56.7]} 2. Nf3 {[%clk 0:02:59.6]}
2... Nc6 {[%clk 0:02:57.1]} 3. Bb5 {[%clk 0:02:59.4]} 3... a6 {[%clk 0:02:57]}
4. Ba4 {[%clk 0:02:59.5]} 4... Nf6 {[%clk 0:02:57.2]} 5. d4 {[%clk 0:02:59]}
5... exd4 {[%clk 0:02:48.4]} 6. O-O {[%clk 0:02:52.3]} 6... Be7 {[%clk
0:02:48.3]} 7. e5 {[%clk 0:02:51.9]} 7... Ne4 {[%clk 0:02:47.2]} 8. Nxd4 {[%clk
0:02:51.8]} 8... Nc5 {[%clk 0:02:42.5]} 9. Nf5 {[%clk 0:02:50.5]} 9... O-O
{[%clk 0:01:48]} 10. Qg4 {[%clk 0:02:49.9]} 10... g6 {[%clk 0:01:48]} 11. Bxc6
{[%clk 0:02:45.3]} 11... dxc6 {[%clk 0:01:45.8]} 12. Nxe7+ {[%clk 0:02:45.5]}
12... Qxe7 {[%clk 0:01:46.4]} 13. Qg3 {[%clk 0:02:44.4]} 13... Re8 {[%clk
0:01:38.8]} 14. Re1 {[%clk 0:02:39.9]} 14... Bf5 {[%clk 0:01:31.3]} 15. Nc3
{[%clk 0:02:39.5]} 15... Ne6 {[%clk 0:01:28.8]} 16. Ne4 {[%clk 0:02:19.3]} 16...
Bxe4 {[%clk 0:01:27.4]} 17. Rxe4 {[%clk 0:02:20.1]} 17... Rad8 {[%clk
0:01:26.5]} 18. Bh6 {[%clk 0:02:17.1]} 18... Qc5 {[%clk 0:01:21.7]} 19. c3
{[%clk 0:01:50.5]} 19... Qb5 {[%clk 0:01:20]} 20. b3 {[%clk 0:01:42.9]} 20...
Qd3 {[%clk 0:01:19.1]} 21. Re3 {[%clk 0:01:33.3]} 21... Qc2 {[%clk 0:01:09.9]}
22. h4 {[%clk 0:01:29.8]} 22... Rd1+ {[%clk 0:01:03.7]} 23. Rxd1 {[%clk
0:01:25.1]} 23... Qxd1+ {[%clk 0:01:04.6]} 24. Kh2 {[%clk 0:01:24.9]} 24... Rd8
{[%clk 0:00:59]} 25. Qf3 {[%clk 0:00:58.2]} 25... Qxf3 {[%clk 0:00:54.7]} 26.
Rxf3 {[%clk 0:00:51.5]} 26... Rd5 {[%clk 0:00:48.9]} 27. Re3 {[%clk 0:00:42.6]}
27... Rd2 {[%clk 0:00:47.9]} 28. f4 {[%clk 0:00:30.8]} 28... Ng7 {[%clk
0:00:41.9]} 29. Bxg7 {[%clk 0:00:25.3]} 29... Kxg7 {[%clk 0:00:42.8]} 30. e6
{[%clk 0:00:25.9]} 30... fxe6 {[%clk 0:00:43.4]} 31. Rxe6 {[%clk 0:00:26.5]}
31... Kf7 {[%clk 0:00:44.1]} 32. Re5 {[%clk 0:00:20.9]} 32... Rxa2 {[%clk
0:00:41.9]} 33. h5 {[%clk 0:00:20.7]} 33... Ra3 {[%clk 0:00:36.5]} 34. f5 {[%clk
0:00:14.2]} 34... gxh5 {[%clk 0:00:33.8]} 35. Kg3 {[%clk 0:00:09.5]} 35... Rxb3
{[%clk 0:00:33.1]} 36. Kf4 {[%clk 0:00:09.7]} 36... Rxc3 {[%clk 0:00:32.3]} 37.
Re6 {[%clk 0:00:10.3]} 37... Rc4+ {[%clk 0:00:30.2]} 38. Kg5 {[%clk 0:00:10.1]}
38... Rg4+ {[%clk 0:00:30.4]} 39. Kxh5 {[%clk 0:00:10.5]} 39... Rxg2 {[%clk
0:00:30.8]} 0-1

[Event "*** Titled Tuesday Blitz"]
[Site "Chess.com"]
[Date "2021.03.16"]
[Round "3"]
[White "jfriedel"]
[Black "vanImpe"]
[Result "0-1"]
[WhiteElo "2579"]
[BlackElo "2427"]
[TimeControl "180+1"]
[EndTime "10:27:52 PDT"]
[Termination "vanImpe won by resignation"]

1. d4 {[%clk 0:03:00.9]} 1... g6 {[%clk 0:02:59.8]} 2. e4 {[%clk 0:02:59.9]}
2... Bg7 {[%clk 0:02:59.8]} 3. Nc3 {[%clk 0:02:58.1]} 3... c5 {[%clk 0:02:59.6]}
4. dxc5 {[%clk 0:02:54.8]} 4... Bxc3+ {[%clk 0:02:59.2]} 5. bxc3 {[%clk
0:02:53.6]} 5... Qa5 {[%clk 0:02:59.7]} 6. Nf3 {[%clk 0:02:42.8]} 6... Nf6
{[%clk 0:02:57.4]} 7. Bd3 {[%clk 0:02:40.2]} 7... Qxc3+ {[%clk 0:02:56.6]} 8.
Bd2 {[%clk 0:02:39.9]} 8... Qxc5 {[%clk 0:02:57.1]} 9. e5 {[%clk 0:02:29]} 9...
Ng4 {[%clk 0:02:56.3]} 10. O-O {[%clk 0:02:28.2]} 10... Nc6 {[%clk 0:02:54.3]}
11. Re1 {[%clk 0:02:25.8]} 11... Ngxe5 {[%clk 0:02:49.1]} 12. Nxe5 {[%clk
0:02:24.1]} 12... Nxe5 {[%clk 0:02:48.5]} 13. Bh6 {[%clk 0:02:22.3]} 13... d6
{[%clk 0:02:42.9]} 14. Bg7 {[%clk 0:02:02.5]} 14... Rg8 {[%clk 0:02:26.7]} 15.
Bxe5 {[%clk 0:02:01.6]} 15... dxe5 {[%clk 0:02:26.9]} 16. Rb1 {[%clk 0:01:57.8]}
16... a6 {[%clk 0:02:25.6]} 17. Be4 {[%clk 0:01:52.6]} 17... Qc7 {[%clk
0:02:12]} 18. Qd2 {[%clk 0:01:44.9]} 18... f5 {[%clk 0:02:09.6]} 19. Bd5 {[%clk
0:01:34.2]} 19... e6 {[%clk 0:02:05.5]} 20. Bb3 {[%clk 0:01:22.3]} 20... Bd7
{[%clk 0:02:00.9]} 21. Re3 {[%clk 0:01:10.7]} 21... Kf7 {[%clk 0:01:51.8]} 22.
Rbe1 {[%clk 0:01:03.1]} 22... e4 {[%clk 0:01:48.8]} 23. Rc3 {[%clk 0:01:00.5]}
23... Bc6 {[%clk 0:01:48.5]} 24. Qh6 {[%clk 0:00:59.9]} 24... Qe5 {[%clk
0:01:41.3]} 25. Qxh7+ {[%clk 0:00:41.9]} 25... Rg7 {[%clk 0:01:35.8]} 26. Qh3
{[%clk 0:00:41.7]} 26... Kg8 {[%clk 0:01:22.4]} 27. Qe3 {[%clk 0:00:28.1]} 27...
f4 {[%clk 0:01:13]} 28. Qc5 {[%clk 0:00:27.2]} 28... Qxc5 {[%clk 0:01:04.2]} 29.
Bxe6+ {[%clk 0:00:26.6]} 29... Kh7 {[%clk 0:01:01.5]} 30. Rxc5 {[%clk
0:00:27.3]} 30... Rd8 {[%clk 0:00:56.5]} 31. Rc3 {[%clk 0:00:23.3]} 31... Re7
{[%clk 0:00:51.3]} 32. Bb3 {[%clk 0:00:22.7]} 32... Kg7 {[%clk 0:00:45.3]} 33.
g3 {[%clk 0:00:22.3]} 33... g5 {[%clk 0:00:44.1]} 34. h4 {[%clk 0:00:20.5]}
34... gxh4 {[%clk 0:00:41.7]} 35. gxf4 {[%clk 0:00:20.4]} 35... Kf6 {[%clk
0:00:37.9]} 36. Kh2 {[%clk 0:00:20.2]} 36... Rd2 {[%clk 0:00:33.8]} 37. Rf1
{[%clk 0:00:19.8]} 37... e3 {[%clk 0:00:29.6]} 38. Kg1 {[%clk 0:00:17]} 38...
Rg7+ {[%clk 0:00:28.6]} 39. Kh2 {[%clk 0:00:17.1]} 39... Rxf2+ {[%clk
0:00:27.8]} 40. Rxf2 {[%clk 0:00:15.9]} 40... exf2 {[%clk 0:00:27.9]} 0-1

[Event "*** Titled Tuesday Blitz"]
[Site "Chess.com"]
[Date "2021.03.16"]
[Round "3"]
[White "Schachmalanders"]
[Black "Ranindu2003"]
[Result "1-0"]
[WhiteElo "2379"]
[BlackElo "2589"]
[TimeControl "180+1"]
[EndTime "10:27:52 PDT"]
[Termination "Schachmalanders won by checkmate"]

1. e4 {[%clk 0:03:00.9]} 1... g6 {[%clk 0:02:58.6]} 2. d4 {[%clk 0:03:00.6]}
2... Bg7 {[%clk 0:02:59.5]} 3. c4 {[%clk 0:02:58.1]} 3... d6 {[%clk 0:02:59.5]}
4. Nc3 {[%clk 0:02:58]} 4... Nc6 {[%clk 0:02:59.3]} 5. Nf3 {[%clk 0:02:58.1]}
5... Bg4 {[%clk 0:02:57.9]} 6. Be3 {[%clk 0:02:55.2]} 6... e5 {[%clk 0:02:57.5]}
7. d5 {[%clk 0:02:52.1]} 7... Nd4 {[%clk 0:02:57.3]} 8. Be2 {[%clk 0:02:48.9]}
8... Bxf3 {[%clk 0:02:54]} 9. Bxf3 {[%clk 0:02:47.6]} 9... Ne7 {[%clk
0:02:53.5]} 10. O-O {[%clk 0:02:47.3]} 10... O-O {[%clk 0:02:52.8]} 11. Bxd4
{[%clk 0:02:42.2]} 11... exd4 {[%clk 0:02:53.7]} 12. Ne2 {[%clk 0:02:42.5]}
12... c5 {[%clk 0:02:48.2]} 13. g3 {[%clk 0:02:29.4]} 13... f5 {[%clk
0:02:46.1]} 14. Rb1 {[%clk 0:02:25.1]} 14... a5 {[%clk 0:02:22.5]} 15. Nf4
{[%clk 0:02:23]} 15... Qd7 {[%clk 0:02:14.3]} 16. Ne6 {[%clk 0:02:21.9]} 16...
Rf7 {[%clk 0:02:14.4]} 17. a3 {[%clk 0:02:11]} 17... Be5 {[%clk 0:02:06.4]} 18.
Bg2 {[%clk 0:02:05.9]} 18... fxe4 {[%clk 0:01:35.7]} 19. Bxe4 {[%clk 0:02:05]}
19... Nf5 {[%clk 0:01:36.4]} 20. Qd3 {[%clk 0:01:52.4]} 20... Ng7 {[%clk
0:01:24]} 21. Ng5 {[%clk 0:01:45.6]} 21... Re7 {[%clk 0:01:15.5]} 22. b4 {[%clk
0:01:40.1]} 22... axb4 {[%clk 0:01:11.6]} 23. axb4 {[%clk 0:01:41]} 23... b6
{[%clk 0:01:12.2]} 24. bxc5 {[%clk 0:01:40]} 24... bxc5 {[%clk 0:01:13.1]} 25.
Rb6 {[%clk 0:01:26.5]} 25... Rae8 {[%clk 0:01:06.8]} 26. Rfb1 {[%clk 0:01:25.3]}
26... Bf6 {[%clk 0:00:53.6]} 27. Ne6 {[%clk 0:01:25.6]} 27... Nxe6 {[%clk
0:00:35.4]} 28. dxe6 {[%clk 0:01:25]} 28... Qa7 {[%clk 0:00:35.9]} 29. Rb7
{[%clk 0:01:20.8]} 29... Qa5 {[%clk 0:00:28.4]} 30. Bc6 {[%clk 0:01:15.9]} 30...
Rxb7 {[%clk 0:00:21.7]} 31. Rxb7 {[%clk 0:01:14.6]} 31... Re7 {[%clk 0:00:16.2]}
32. Rxe7 {[%clk 0:01:07.1]} 32... Bxe7 {[%clk 0:00:17.1]} 33. Qf3 {[%clk
0:01:07.4]} 33... Qd8 {[%clk 0:00:17.5]} 34. Qf7+ {[%clk 0:01:06.6]} 34... Kh8
{[%clk 0:00:17.8]} 35. Be8 {[%clk 0:00:58.8]} 35... d3 {[%clk 0:00:15.1]} 36.
Kf1 {[%clk 0:00:58.3]} 36... d5 {[%clk 0:00:13.5]} 37. cxd5 {[%clk 0:00:57.5]}
37... c4 {[%clk 0:00:13.6]} 38. Bb5 {[%clk 0:00:57.6]} 38... d2 {[%clk
0:00:09.4]} 39. Ke2 {[%clk 0:00:56.8]} 39... c3 {[%clk 0:00:09.9]} 40. Bd3
{[%clk 0:00:54.6]} 40... Qxd5 {[%clk 0:00:07.9]} 41. Qxe7 {[%clk 0:00:53.4]}
41... d1=Q+ {[%clk 0:00:06]} 42. Kxd1 {[%clk 0:00:51.9]} 42... Qxd3+ {[%clk
0:00:06.6]} 43. Ke1 {[%clk 0:00:52.4]} 43... Qd2+ {[%clk 0:00:04.6]} 44. Kf1
{[%clk 0:00:52.5]} 44... Qd5 {[%clk 0:00:05.2]} 45. Qf8# {[%clk 0:00:52]} 1-0

[Event "*** Titled Tuesday Blitz"]
[Site "Chess.com"]
[Date "2021.03.16"]
[Round "3"]
[White "vugarrasulov"]
[Black "AvitalBor"]
[Result "1-0"]
[WhiteElo "2847"]
[BlackElo "2648"]
[TimeControl "180+1"]
[EndTime "10:27:53 PDT"]
[Termination "vugarrasulov won by resignation"]

1. e4 {[%clk 0:03:00.9]} 1... e5 {[%clk 0:02:59.1]} 2. Nf3 {[%clk 0:03:00.8]}
2... Nc6 {[%clk 0:02:59.8]} 3. Bb5 {[%clk 0:03:00.9]} 3... a6 {[%clk 0:03:00.2]}
4. Ba4 {[%clk 0:03:00.9]} 4... Nf6 {[%clk 0:03:00.5]} 5. d3 {[%clk 0:03:01.2]}
5... b5 {[%clk 0:03:00]} 6. Bb3 {[%clk 0:03:01]} 6... Be7 {[%clk 0:03:00.3]} 7.
O-O {[%clk 0:03:00.3]} 7... O-O {[%clk 0:02:59.8]} 8. a4 {[%clk 0:03:01]} 8...
Bb7 {[%clk 0:02:59.9]} 9. Nc3 {[%clk 0:03:00.3]} 9... Na5 {[%clk 0:02:58.3]} 10.
Ba2 {[%clk 0:02:57.4]} 10... b4 {[%clk 0:02:58.3]} 11. Ne2 {[%clk 0:02:55.6]}
11... d5 {[%clk 0:02:58]} 12. exd5 {[%clk 0:02:52]} 12... Bxd5 {[%clk
0:02:58.9]} 13. Bxd5 {[%clk 0:02:48.5]} 13... Qxd5 {[%clk 0:02:59.8]} 14. Ng3
{[%clk 0:02:48.6]} 14... g6 {[%clk 0:02:49.9]} 15. Re1 {[%clk 0:02:43.8]} 15...
Nc6 {[%clk 0:02:46.1]} 16. Qe2 {[%clk 0:02:35]} 16... Rfe8 {[%clk 0:02:40.4]}
17. Bg5 {[%clk 0:02:32.8]} 17... Nd7 {[%clk 0:02:31.8]} 18. Bxe7 {[%clk
0:02:28.2]} 18... Rxe7 {[%clk 0:02:32.7]} 19. c3 {[%clk 0:02:24.8]} 19... bxc3
{[%clk 0:02:30.9]} 20. bxc3 {[%clk 0:02:25.7]} 20... Nc5 {[%clk 0:02:21.3]} 21.
Ne4 {[%clk 0:02:19.9]} 21... Nxe4 {[%clk 0:02:20.5]} 22. dxe4 {[%clk 0:02:20.8]}
22... Qc5 {[%clk 0:02:18.4]} 23. Red1 {[%clk 0:02:20.2]} 23... Na5 {[%clk
0:01:58.6]} 24. h4 {[%clk 0:02:13.4]} 24... c6 {[%clk 0:01:55.7]} 25. h5 {[%clk
0:02:11.5]} 25... Kg7 {[%clk 0:01:50.3]} 26. Rab1 {[%clk 0:02:01.1]} 26... Nc4
{[%clk 0:01:28.1]} 27. Nh4 {[%clk 0:01:57.5]} 27... Re6 {[%clk 0:00:58.5]} 28.
Rd3 {[%clk 0:01:53.4]} 28... Rd6 {[%clk 0:00:52.1]} 29. Rxd6 {[%clk 0:01:45.8]}
29... Nxd6 {[%clk 0:00:53]} 30. Rd1 {[%clk 0:01:43.3]} 30... Rb8 {[%clk
0:00:48.4]} 31. Qg4 {[%clk 0:01:41.5]} 31... Kf8 {[%clk 0:00:28.5]} 32. hxg6
{[%clk 0:01:23.3]} 32... hxg6 {[%clk 0:00:29.4]} 33. Rd3 {[%clk 0:01:16.8]}
33... Rb1+ {[%clk 0:00:27]} 34. Kh2 {[%clk 0:01:17.2]} 34... Ke7 {[%clk
0:00:12.4]} 35. Rf3 {[%clk 0:01:13.1]} 35... Qc4 {[%clk 0:00:10.1]} 36. Qg5+
{[%clk 0:01:09.8]} 36... Ke8 {[%clk 0:00:10.1]} 37. Qxe5+ {[%clk 0:01:09.8]}
37... Kd7 {[%clk 0:00:09.8]} 38. Rf6 {[%clk 0:00:54.8]} 38... Rd1 {[%clk
0:00:09.8]} 39. Nf3 {[%clk 0:00:53.2]} 39... Ne8 {[%clk 0:00:08.9]} 40. Qf4
{[%clk 0:00:38.5]} 40... Nxf6 {[%clk 0:00:08.2]} 41. Ne5+ {[%clk 0:00:38.6]}
41... Ke6 {[%clk 0:00:08.5]} 42. Nxc4 {[%clk 0:00:39.5]} 42... g5 {[%clk
0:00:09]} 43. Qe5+ {[%clk 0:00:39.7]} 1-0